lending/lending_fUSD_20241229
["ID","MTS","AMOUNT","RATE_DAILY","PERIOD"]
[347085598,1735491080576,-615.03,0.00015648,2]
[347085599,1735491080586,-899.47,0.00015648,2]
[347085600,1735491080595,-500.0,0.00015648,2]
[347085601,1735491080605,-815.97,0.00015648,2]
[347085602,1735491080614,-18568.48,0.00015648,2]
[347085603,1735491080623,-500.0,0.00015648,2]
[347085604,1735491080633,-545.9,0.00015648,2]
[347085605,1735491080642,-969.49,0.00015648,2]
[347085606,1735491080652,-492.35565361,0.00015648,2]
[347085607,1735491080662,-1026.67,0.00015648,2]
[347085608,1735491080673,-262.66244225,0.00015648,2]
[347085609,1735491080682,-2110.5,0.00015648,2]
[347085610,1735491080692,-500.0,0.00015648,2]
[347085611,1735491080703,-703.26,0.00015648,2]
[347085612,1735491080712,-510.62,0.00015648,2]
[347085613,1735491080722,-226.30214345,0.00015648,2]
[347085614,1735491080732,-500.0,0.00015648,2]
[347085615,1735491080742,-567.67469811,0.00015648,2]
[347085616,1735491080752,-570.93,0.00015648,2]
[347085617,1735491080761,-1499.18,0.00015649,2]
[347085618,1735491080771,-500.0,0.00015649,2]
[347085619,1735491080781,-578.37,0.00015649,2]
[347085620,1735491080790,-500.0,0.00015649,2]
[347085621,1735491080800,-548.58,0.00015649,2]
[347085622,1735491080810,-500.0,0.00015649,2]
[347085623,1735491080820,-700.84,0.00015649,2]
[347085624,1735491080830,-2940.43,0.00015649,2]
[347085625,1735491080840,-5636.03,0.00015649,2]
[347085626,1735491080850,-556.4,0.00015649,2]
[347085627,1735491080860,-500.0,0.00015649,2]
[347085628,1735491080869,-1813.25,0.00015649,2]
[347085629,1735491080879,-640.38,0.00015649,2]
[347085630,1735491080889,-15027.68,0.00015649,2]
[347085631,1735491080899,-500.0,0.00015649,2]
[347085632,1735491080909,-500.0,0.00015649,2]
[347085633,1735491080919,-1140.36,0.00015649,2]
[347085634,1735491080929,-4325.16,0.0001565,2]
[347085635,1735491080938,-1186.66,0.0001565,2]
[347085636,1735491080948,-692.34,0.0001565,2]
[347085637,1735491080958,-150.0,0.00015652,2]
[347085638,1735491080968,-1555.45732006,0.00015711,2]
[347085639,1735491080978,-150.0,0.00015718,2]
[347085640,1735491080988,-500.0,0.00015726,2]
[347085641,1735491080998,-462.66,0.0001573,2]
[347085642,1735491081008,-150.0,0.00015731,2]
[347085643,1735491081017,-150.0,0.00015753,2]
[347085644,1735491081027,-449.47054958,0.00015782,2]
[347085645,1735491081038,-500.0,0.0001582,2]
[347085646,1735491081048,-791.71,0.0001582,2]
[347085647,1735491081057,-500.0,0.0001582,2]
[347085648,1735491081067,-950.63,0.0001582,2]
[347085649,1735491081077,-1210.43,0.0001582,2]
[347085650,1735491081088,-500.0,0.0001582,2]
[347085651,1735491081098,-150.0,0.00015865,2]
[347085652,1735491081110,-150.0,0.00015867,2]
[347085653,1735491081119,-1159.18,0.00015919,2]
[347085654,1735491081129,-520.55,0.00015919,2]
[347085655,1735491081138,-705.2,0.00015919,2]
[347085656,1735491081148,-150.701539,0.00015919,2]
[347085657,1735491081157,-2192.36,0.00015919,2]
[347085658,1735491081168,-2173.71,0.00015919,2]
[347085659,1735491081177,-1409.21,0.00015919,2]
[347085660,1735491081189,-1775.22,0.00015919,2]
[347085661,1735491081199,-500.0,0.00015919,2]
[347085662,1735491081209,-600.51830225,0.00015919,2]
[347085663,1735491081219,-2866.13,0.00015919,2]
[347085664,1735491081229,-500.0,0.00015919,2]
[347085665,1735491081238,-1154.75,0.00015919,2]
[347085666,1735491081248,-781.33,0.00015919,2]
[347085667,1735491081258,-1890.37,0.00015919,2]
[347085668,1735491081268,-1791.32,0.00015919,2]
[347085669,1735491081278,-1113.85,0.00015919,2]
[347085670,1735491081288,-695.21,0.00015919,2]
[347085671,1735491081298,-516.34,0.00015919,2]
[347085672,1735491081308,-822.12,0.00015919,2]
[347085673,1735491081317,-577.92,0.00015919,2]
[347085674,1735491081327,-870.38,0.00015919,2]
[347085675,1735491081337,-500.0,0.00015919,2]
[347085676,1735491081347,-3278.13,0.00015919,2]
[347085677,1735491081357,-1015.64,0.00015919,2]
[347085678,1735491081366,-500.0,0.00015919,2]
[347085679,1735491081376,-620.96,0.00015919,2]
[347085680,1735491081386,-704.14,0.00015919,2]
[347085681,1735491081396,-1840.21,0.00015919,2]
[347085682,1735491081406,-816.1,0.0001592,2]
[347085683,1735491081416,-500.0,0.0001592,2]
[347085684,1735491081426,-590.14,0.0001592,2]
[347085685,1735491081436,-1340.36,0.0001592,2]
[347085686,1735491081446,-762.4,0.0001592,2]
[347085687,1735491081456,-2344.33,0.0001592,2]
[347085688,1735491081466,-909.47,0.0001592,2]
[347085689,1735491081476,-865.68,0.0001592,2]
[347085690,1735491081485,-701.25,0.0001592,2]
[347085691,1735491081495,-602.07,0.0001592,2]
[347085692,1735491081504,-1953.32,0.0001592,2]
[347085693,1735491081514,-500.0,0.0001592,2]
[347085694,1735491081523,-621.43,0.0001592,2]
[347085695,1735491081534,-873.53,0.0001592,2]
[347085696,1735491081544,-500.0,0.0001592,2]
[347085697,1735491081554,-722.38,0.0001592,2]
[347085698,1735491081563,-500.0,0.0001592,2]
[347085699,1735491081574,-2838.92,0.0001592,2]
[347085700,1735491081583,-707.48,0.0001592,2]
[347085701,1735491081594,-3628.4,0.0001592,2]
[347085702,1735491081604,-876.23,0.0001592,2]
[347085703,1735491081614,-3692.81,0.0001592,2]
[347085704,1735491081624,-500.0,0.0001592,2]
[347085705,1735491081634,-3200.69,0.0001592,2]
[347085706,1735491081644,-1101.36,0.0001592,2]
[347085707,1735491081653,-870.98,0.0001592,2]
[347085708,1735491081663,-602.5538745,0.0001592,2]
[347085709,1735491081672,-1348.28,0.0001592,2]
[347085710,1735491081682,-1836.05,0.0001592,2]
[347085711,1735491081692,-500.0,0.00015921,2]
[347085712,1735491081702,-999.87,0.00015921,2]
[347085713,1735491081712,-510.19,0.00015921,2]
[347085714,1735491081722,-1921.52,0.00015921,2]
[347085715,1735491081732,-546.78,0.00015921,2]
[347085716,1735491081742,-3871.1,0.00015921,2]
[347085717,1735491081752,-592.58,0.00015921,2]
[347085718,1735491081762,-513.22,0.00015921,2]
[347085719,1735491081772,-1175.67,0.00015921,2]
[347085720,1735491081781,-392.75853682,0.00015921,2]
[347085721,1735491081791,-515.44,0.00015922,2]
[347085722,1735491081801,-500.0,0.00015922,2]
[347085723,1735491081811,-615.03,0.00015922,2]
[347085724,1735491081821,-899.47,0.00015922,2]
[347085725,1735491081831,-500.0,0.00015922,2]
[347085726,1735491081840,-815.97,0.00015922,2]
[347085727,1735491081850,-18568.48,0.00015922,2]
[347085728,1735491081860,-500.0,0.00015922,2]
[347085729,1735491081870,-545.9,0.00015922,2]
[347085730,1735491081879,-969.49,0.00015922,2]
[347085731,1735491081889,-1026.67,0.00015922,2]
[347085732,1735491081899,-2110.5,0.00015922,2]
[347085733,1735491081908,-500.0,0.00015922,2]
[347085734,1735491081919,-703.26,0.00015922,2]
[347085735,1735491081928,-510.62,0.00015922,2]
[347085736,1735491081938,-500.0,0.00015922,2]
[347085737,1735491081948,-570.93,0.00015922,2]
[347085738,1735491081958,-1499.18,0.00015923,2]
[347085739,1735491081968,-500.0,0.00015923,2]
[347085740,1735491081978,-578.37,0.00015923,2]
[347085741,1735491081988,-500.0,0.00015923,2]
[347085742,1735491081998,-548.58,0.00015923,2]
[347085743,1735491082008,-500.0,0.00015923,2]
[347085744,1735491082019,-700.84,0.00015923,2]
[347085745,1735491082028,-2940.43,0.00015923,2]
[347085746,1735491082042,-5636.03,0.00015923,2]
[347085747,1735491082052,-556.4,0.00015923,2]
[347085748,1735491082061,-500.0,0.00015923,2]
[347085749,1735491082071,-1813.25,0.00015923,2]
[347085750,1735491082081,-640.38,0.00015923,2]
[347085751,1735491082091,-15027.68,0.00015923,2]
[347085752,1735491082101,-500.0,0.00015923,2]
[347085753,1735491082115,-500.0,0.00015923,2]
[347085754,1735491082124,-1140.36,0.00015923,2]
[347085755,1735491082134,-4325.16,0.00015924,2]
[347085756,1735491082144,-1186.66,0.00015924,2]
[347085757,1735491082155,-692.34,0.00015924,2]
[347085758,1735491082165,-150.0,0.00015928,2]
[347085759,1735491082175,-150.0,0.00015976,2]
[347085760,1735491082185,-550.0,0.00016,2]
[347085761,1735491082195,-150.0,0.00016082,2]
[347085762,1735491082205,-1100.0,0.00016082,2]
[347085763,1735491082215,-500.0,0.00016082,2]
[347085764,1735491082225,-500.0,0.00016094,2]
[347085765,1735491082234,-791.71,0.00016094,2]
[347085766,1735491082243,-500.0,0.00016094,2]
[347085767,1735491082253,-950.63,0.00016094,2]
[347085768,1735491082263,-1210.43,0.00016094,2]
[347085769,1735491082273,-500.0,0.00016094,2]
[347085770,1735491082284,-150.0,0.00016098,2]
[347085771,1735491082294,-150.0,0.00016098,2]
[347085772,1735491082304,-150.0,0.00016108,2]
[347085773,1735491082315,-500.0,0.0001611,2]
[347085774,1735491082325,-9999.99,0.00016116,2]
[347085775,1735491082335,-150.0,0.00016118,2]
[347085776,1735491082345,-150.0,0.00016124,2]
[347085777,1735491082355,-1000.0,0.00016124,2]
[347085778,1735491082365,-956.63923777,0.00016149,2]
[347085779,1735491082376,-150.0,0.00016162,2]
[347085780,1735491082387,-619.89,0.00016162,2]
[347085781,1735491082396,-150.0,0.00016183,2]
[347085782,1735491082406,-1159.18,0.00016193,2]
[347085783,1735491082417,-520.55,0.00016193,2]
[347085784,1735491082427,-705.2,0.00016193,2]
[347085785,1735491082437,-150.701539,0.00016193,2]
[347085786,1735491082447,-2192.36,0.00016193,2]
[347085787,1735491082458,-2173.71,0.00016193,2]
[347085788,1735491082468,-1409.21,0.00016193,2]
[347085789,1735491082478,-1775.22,0.00016193,2]
[347085790,1735491082488,-500.0,0.00016193,2]
[347085791,1735491082675,-2866.13,0.00016193,2]
[347085792,1735491082685,-500.0,0.00016193,2]
[347085793,1735491082694,-781.33,0.00016193,2]
[347085794,1735491082704,-1154.75,0.00016193,2]
[347085795,1735491082714,-1890.37,0.00016193,2]
[347085796,1735491082723,-1791.32,0.00016193,2]
[347085797,1735491082733,-1113.85,0.00016193,2]
[347085798,1735491082742,-695.21,0.00016193,2]
[347085799,1735491082752,-516.34,0.00016193,2]
[347085800,1735491082761,-822.12,0.00016193,2]
[347085801,1735491082771,-577.92,0.00016193,2]
[347085802,1735491082782,-870.38,0.00016193,2]
[347085803,1735491082792,-584.59378198,0.00016193,2]
[347085804,1735491082802,-3278.13,0.00016193,2]
[347085805,1735491082812,-1015.64,0.00016193,2]
[347085806,1735491082822,-500.0,0.00016193,2]
[347085807,1735491082832,-620.96,0.00016193,2]
[347085808,1735491082841,-704.14,0.00016193,2]
[347085809,1735491082851,-1840.21,0.00016193,2]
[347085810,1735491082860,-816.1,0.00016194,2]
[347085811,1735491082870,-500.0,0.00016194,2]
[347085812,1735491082879,-590.14,0.00016194,2]
[347085813,1735491082889,-1340.36,0.00016194,2]
[347085814,1735491082898,-762.4,0.00016194,2]
[347085815,1735491082907,-2344.33,0.00016194,2]
[347085816,1735491082917,-909.47,0.00016194,2]
[347085817,1735491082927,-865.68,0.00016194,2]
[347085818,1735491082936,-701.25,0.00016194,2]
[347085819,1735491082946,-602.07,0.00016194,2]
[347085820,1735491082955,-1953.32,0.00016194,2]
[347085821,1735491082964,-398.66,0.00016194,2]
[347085822,1735491082974,-621.43,0.00016194,2]
[347085823,1735491082983,-873.53,0.00016194,2]
[347085824,1735491082993,-500.0,0.00016194,2]
[347085825,1735491083002,-722.38,0.00016194,2]
[347085826,1735491083011,-500.0,0.00016194,2]
[347085827,1735491083021,-2838.92,0.00016194,2]
[347085828,1735491083030,-707.48,0.00016194,2]
[347085829,1735491083042,-3628.4,0.00016194,2]
[347085830,1735491083052,-876.23,0.00016194,2]
[347085831,1735491083062,-3692.81,0.00016194,2]
[347085832,1735491083072,-500.0,0.00016194,2]
[347085833,1735491083082,-1101.36,0.00016194,2]
[347085834,1735491083092,-3200.69,0.00016194,2]
[347085835,1735491083102,-870.98,0.00016194,2]
[347085836,1735491083113,-1348.28,0.00016194,2]
[347085837,1735491083122,-1836.05,0.00016194,2]
[347085838,1735491083131,-500.0,0.00016195,2]
[347085839,1735491083142,-999.87,0.00016195,2]
[347085840,1735491083153,-510.19,0.00016195,2]
[347085841,1735491083163,-1921.52,0.00016195,2]
[347085842,1735491083173,-546.78,0.00016195,2]
[347085843,1735491083185,-3871.1,0.00016195,2]
[347085844,1735491083195,-592.58,0.00016195,2]
[347085845,1735491083204,-513.22,0.00016195,2]
[347085846,1735491083214,-1175.67,0.00016195,2]
[347085847,1735491083224,-515.44,0.00016196,2]
[347085848,1735491083233,-615.03,0.00016196,2]
[347085849,1735491083243,-899.47,0.00016196,2]
[347085850,1735491083252,-500.0,0.00016196,2]
[347085851,1735491083262,-815.97,0.00016196,2]
[347085852,1735491083271,-18568.48,0.00016196,2]
[347085853,1735491083283,-500.0,0.00016196,2]
[347085854,1735491083293,-545.9,0.00016196,2]
[347085855,1735491083303,-969.49,0.00016196,2]
[347085856,1735491083312,-1026.67,0.00016196,2]
[347085857,1735491083321,-2110.5,0.00016196,2]
[347085858,1735491083331,-500.0,0.00016196,2]
[347085859,1735491083340,-703.26,0.00016196,2]
[347085860,1735491083349,-510.62,0.00016196,2]
[347085861,1735491083359,-500.0,0.00016196,2]
[347085862,1735491083368,-570.93,0.00016196,2]
[347085863,1735491083378,-1499.18,0.00016197,2]
[347085864,1735491083387,-500.0,0.00016197,2]
[347085865,1735491083396,-578.37,0.00016197,2]
[347085866,1735491083405,-500.0,0.00016197,2]
[347085867,1735491083415,-548.58,0.00016197,2]
[347085868,1735491083425,-500.0,0.00016197,2]
[347085869,1735491083435,-700.84,0.00016197,2]
[347085870,1735491083445,-2940.43,0.00016197,2]
[347085871,1735491083454,-5636.03,0.00016197,2]
[347085872,1735491083464,-556.4,0.00016197,2]
[347085873,1735491083474,-1813.25,0.00016197,2]
[347085874,1735491083483,-640.38,0.00016197,2]
[347085875,1735491083492,-15027.68,0.00016197,2]
[347085876,1735491083502,-500.0,0.00016197,2]
[347085877,1735491083511,-500.0,0.00016197,2]
[347085878,1735491083521,-1140.36,0.00016197,2]
[347085879,1735491083530,-1186.66,0.00016198,2]
[347085880,1735491083540,-692.34,0.00016198,2]
[347085881,1735491083549,-1500.0,0.00016227,2]
[347085882,1735491083558,-150.0,0.0001627,2]
[347085883,1735491083568,-1500.0,0.00016299,2]
[347085884,1735491083579,-150.0,0.00016367,2]
[347085885,1735491083590,-500.0,0.00016368,2]
[347085886,1735491083599,-791.71,0.00016368,2]
[347085887,1735491083609,-500.0,0.00016368,2]
[347085888,1735491083618,-950.63,0.00016368,2]
[347085889,1735491083628,-1210.43,0.00016368,2]
[347085890,1735491083637,-500.0,0.00016368,2]
[347085891,1735491083646,-150.0,0.0001637,2]
[347085892,1735491083655,-150.0,0.00016373,2]
[347085893,1735491083665,-150.0,0.00016375,2]
[347085894,1735491083674,-150.0,0.00016384,2]
[347085895,1735491083683,-152.0,0.00016399,4]
[347085896,1735491083693,-150.0,0.00016417,2]
[347085897,1735491083702,-150.0,0.00016422,2]
[347085898,1735491083711,-1000.0,0.00016438,2]
[347085899,1735491083721,-200.0,0.00016438,2]
[347085900,1735491083730,-200.0,0.00016438,2]
[347085901,1735491083739,-200.0,0.00016438,2]
[347085902,1735491083749,-200.0,0.00016438,2]
[347085903,1735491083758,-200.0,0.00016438,2]
[347085904,1735491083768,-207.70624035,0.00016438,2]
[347085905,1735491083777,-2118.33,0.00016438,2]
[347085906,1735491083789,-300.0,0.00016438,2]
[347085907,1735491083798,-150.0,0.00016438,2]
[347085908,1735491083808,-150.0,0.0001646,2]
[347085909,1735491083818,-150.0,0.00016461,2]
[347085910,1735491083827,-1000.0,0.00016465,2]
[347085911,1735491083837,-150.0,0.00016465,2]
[347085912,1735491083846,-1159.18,0.00016467,2]
[347085913,1735491083856,-520.55,0.00016467,2]
[347085914,1735491083865,-705.2,0.00016467,2]
[347085915,1735491083874,-150.701539,0.00016467,2]
[347085916,1735491083884,-2192.36,0.00016467,2]
[347085917,1735491083893,-2173.71,0.00016467,2]
[347085918,1735491083903,-1409.21,0.00016467,2]
[347085919,1735491083912,-1775.22,0.00016467,2]
[347085920,1735491083922,-500.0,0.00016467,2]
[347085921,1735491083931,-2866.13,0.00016467,2]
[347085922,1735491083941,-500.0,0.00016467,2]
[347085923,1735491083950,-781.33,0.00016467,2]
[347085924,1735491083960,-1154.75,0.00016467,2]
[347085925,1735491083969,-1890.37,0.00016467,2]
[347085926,1735491083979,-1791.32,0.00016467,2]
[347085927,1735491083988,-1113.85,0.00016467,2]
[347085928,1735491083997,-695.21,0.00016467,2]
[347085929,1735491084007,-516.34,0.00016467,2]
[347085930,1735491084016,-822.12,0.00016467,2]
[347085931,1735491084026,-577.92,0.00016467,2]
[347085932,1735491084037,-870.38,0.00016467,2]
[347085933,1735491084047,-3278.13,0.00016467,2]
[347085934,1735491084056,-1015.64,0.00016467,2]
[347085935,1735491084067,-500.0,0.00016467,2]
[347085936,1735491084076,-620.96,0.00016467,2]
[347085937,1735491084087,-816.1,0.00016468,2]
[347085938,1735491084097,-500.0,0.00016468,2]
[347085939,1735491084108,-590.14,0.00016468,2]
[347085940,1735491084118,-1340.36,0.00016468,2]
[347085941,1735491084128,-762.4,0.00016468,2]
[347085942,1735491084138,-2344.33,0.00016468,2]
[347085943,1735491084147,-909.47,0.00016468,2]
[347085944,1735491084158,-865.68,0.00016468,2]
[347085945,1735491084171,-701.25,0.00016468,2]
[347085946,1735491084188,-602.07,0.00016468,2]
[347085947,1735491084200,-1953.32,0.00016468,2]
[347085948,1735491084210,-621.43,0.00016468,2]
[347085949,1735491084219,-873.53,0.00016468,2]
[347085950,1735491084228,-353.76,0.00016468,2]
[347085951,1735491084238,-722.38,0.00016468,2]
[347085952,1735491084247,-500.0,0.00016468,2]
[347085953,1735491084256,-2838.92,0.00016468,2]
[347085954,1735491084265,-707.48,0.00016468,2]
[347085955,1735491084275,-3628.4,0.00016468,2]
[347085956,1735491084289,-876.23,0.00016468,2]
[347085957,1735491084298,-3692.81,0.00016468,2]
[347085958,1735491084308,-500.0,0.00016468,2]
[347085959,1735491084318,-1101.36,0.00016468,2]
[347085960,1735491084328,-3200.69,0.00016468,2]
[347085961,1735491084338,-870.98,0.00016468,2]
[347085962,1735491084347,-1348.28,0.00016468,2]
[347085963,1735491084357,-1836.05,0.00016468,2]
[347085964,1735491084367,-500.0,0.00016469,2]
[347085965,1735491084376,-999.87,0.00016469,2]
[347085966,1735491084386,-510.19,0.00016469,2]
[347085967,1735491084395,-1921.52,0.00016469,2]
[347085968,1735491084404,-546.78,0.00016469,2]
[347085969,1735491084414,-3871.1,0.00016469,2]
[347085970,1735491084423,-592.58,0.00016469,2]
[347085971,1735491084432,-513.22,0.00016469,2]
[347085972,1735491084441,-1175.67,0.00016469,2]
[347085973,1735491084451,-515.44,0.0001647,2]
[347085974,1735491084460,-615.03,0.0001647,2]
[347085975,1735491084469,-899.47,0.0001647,2]
[347085976,1735491084479,-500.0,0.0001647,2]
[347085977,1735491084488,-815.97,0.0001647,2]
[347085978,1735491084498,-18568.48,0.0001647,2]
[347085979,1735491084507,-310.60680094,0.0001647,2]
[347085980,1735491084516,-545.9,0.0001647,2]
[347085981,1735491084526,-969.49,0.0001647,2]
[347085982,1735491084536,-1026.67,0.0001647,2]
[347085983,1735491084546,-2110.5,0.0001647,2]
[347085984,1735491084555,-500.0,0.0001647,2]
[347085985,1735491084566,-703.26,0.0001647,2]
[347085986,1735491084575,-510.62,0.0001647,2]
[347085987,1735491084584,-500.0,0.0001647,2]
[347085988,1735491084600,-570.93,0.0001647,2]
[347085989,1735491084616,-1499.18,0.00016471,2]
[347085990,1735491084629,-500.0,0.00016471,2]
[347085991,1735491084641,-578.37,0.00016471,2]
[347085992,1735491084655,-351.53,0.00016471,2]
[347085993,1735491084668,-548.58,0.00016471,2]
[347085994,1735491084682,-219.33023324,0.00016471,2]
[347085995,1735491084698,-700.84,0.00016471,2]
[347085996,1735491084711,-2940.43,0.00016471,2]
[347085997,1735491084722,-5636.03,0.00016471,2]
[347085998,1735491084734,-556.4,0.00016471,2]
[347085999,1735491084748,-1813.25,0.00016471,2]
[347086000,1735491084761,-640.38,0.00016471,2]
[347086001,1735491084776,-15027.68,0.00016471,2]
[347086002,1735491084790,-500.0,0.00016471,2]
[347086003,1735491084804,-500.0,0.00016471,2]
[347086004,1735491084819,-1140.36,0.00016471,2]
[347086005,1735491084832,-1186.66,0.00016472,2]
[347086006,1735491084845,-692.34,0.00016472,2]
[347086007,1735491084859,-1000.0,0.00016493,2]
[347086008,1735491084872,-500.0,0.00016493,2]
[347086009,1735491084887,-150.0,0.00016498,2]
[347086010,1735491084899,-150.0,0.00016505,2]
[347086011,1735491084917,-1000.0,0.0001652,2]
[347086012,1735491084930,-150.0,0.00016525,2]
[347086013,1735491084943,-313.819,0.0001653,2]
[347086014,1735491084964,-150.0,0.00016546,2]
[347086015,1735491084975,-1000.0,0.00016547,2]
[347086016,1735491084987,-150.0,0.00016555,2]
[347086017,1735491084999,-1000.0,0.00016575,2]
[347086018,1735491085015,-15091.0,0.000166,2]
[347086019,1735491085027,-1000.0,0.00016602,2]
[347086020,1735491085038,-150.0,0.00016608,2]
[347086021,1735491085055,-165.147,0.0001661,2]
[347086022,1735491085069,-2575.904,0.0001661,2]
[347086023,1735491085084,-150.0,0.00016628,2]
[347086024,1735491085098,-150.0,0.00016629,2]
[347086025,1735491085115,-1000.0,0.0001663,2]
[347086026,1735491085129,-500.0,0.00016642,2]
[347086027,1735491085143,-791.71,0.00016642,2]
[347086028,1735491085157,-603.25,0.00016642,2]
[347086029,1735491085171,-950.63,0.00016642,2]
[347086030,1735491085185,-1210.43,0.00016642,2]
[347086031,1735491085199,-500.0,0.00016642,2]
[347086032,1735491085212,-1000.0,0.00016657,2]
[347086033,1735491085225,-150.63278264,0.00016657,2]
[347086034,1735491085239,-150.0,0.00016682,2]
[347086035,1735491085251,-1000.0,0.00016684,2]
[347086036,1735491085264,-150.0,0.00016685,2]
[347086037,1735491085276,-1500.0,0.00016693,2]
[347086038,1735491085290,-1616.16,0.000167,2]
[347086039,1735491085303,-150.0,0.0001671,2]
[347086040,1735491085315,-1000.0,0.00016712,2]
[347086041,1735491085328,-175.79,0.00016712,2]
[347086042,1735491085341,-150.0,0.00016716,2]
[347086043,1735491085354,-150.0,0.00016721,2]
[347086044,1735491085367,-150.73507491,0.00016736,2]
[347086045,1735491085380,-843.67,0.00016739,2]
[347086046,1735491085392,-2207.2994162,0.00016741,2]
[347086047,1735491085404,-24754.14456993,0.00016741,2]
[347086048,1735491085417,-318997.90541161,0.00016741,2]
[347086049,1735491085429,-1159.18,0.00016741,2]
[347086050,1735491085440,-520.55,0.00016741,2]
[347086051,1735491085452,-705.2,0.00016741,2]
[347086052,1735491085465,-2192.36,0.00016741,2]
[347086053,1735491085477,-2173.71,0.00016741,2]
[347086054,1735491085489,-1409.21,0.00016741,2]
[347086055,1735491085501,-1775.22,0.00016741,2]
[347086056,1735491085514,-500.0,0.00016741,2]
[347086057,1735491085526,-2866.13,0.00016741,2]
[347086058,1735491085539,-500.0,0.00016741,2]
[347086059,1735491085551,-781.33,0.00016741,2]
[347086060,1735491085565,-1154.75,0.00016741,2]
[347086061,1735491085578,-1890.37,0.00016741,2]
[347086062,1735491085590,-1791.32,0.00016741,2]
[347086063,1735491085602,-1113.85,0.00016741,2]
[347086064,1735491085615,-695.21,0.00016741,2]
[347086065,1735491085627,-516.34,0.00016741,2]
[347086066,1735491085639,-822.12,0.00016741,2]
[347086067,1735491085651,-577.92,0.00016741,2]
[347086068,1735491085662,-870.38,0.00016741,2]
[347086069,1735491085675,-3278.13,0.00016741,2]
[347086070,1735491085686,-1015.64,0.00016741,2]
[347086071,1735491085698,-500.0,0.00016741,2]
[347086072,1735491085710,-620.96,0.00016741,2]
[347086073,1735491085722,-816.1,0.00016742,2]
[347086074,1735491085733,-500.0,0.00016742,2]
[347086075,1735491085745,-590.14,0.00016742,2]
[347086076,1735491085757,-1340.36,0.00016742,2]
[347086077,1735491085769,-762.4,0.00016742,2]
[347086078,1735491085781,-2344.33,0.00016742,2]
[347086079,1735491085795,-909.47,0.00016742,2]
[347086080,1735491085807,-865.68,0.00016742,2]
[347086081,1735491085819,-701.25,0.00016742,2]
[347086082,1735491085832,-602.07,0.00016742,2]
[347086083,1735491085844,-1953.32,0.00016742,2]
[347086084,1735491085856,-621.43,0.00016742,2]
[347086085,1735491085869,-873.53,0.00016742,2]
[347086086,1735491085881,-722.38,0.00016742,2]
[347086087,1735491085893,-500.0,0.00016742,2]
[347086088,1735491085904,-2838.92,0.00016742,2]
[347086089,1735491085915,-707.48,0.00016742,2]
[347086090,1735491085927,-3628.4,0.00016742,2]
[347086091,1735491085939,-876.23,0.00016742,2]
[347086092,1735491085950,-3692.81,0.00016742,2]
[347086093,1735491085961,-500.0,0.00016742,2]
[347086094,1735491085973,-1101.36,0.00016742,2]
[347086095,1735491085985,-3200.69,0.00016742,2]
[347086096,1735491085997,-870.98,0.00016742,2]
[347086097,1735491086009,-1348.28,0.00016742,2]